[Event "Late-Titled-Tuesday-Blitz-January-23-2024"]
[Site "Chess.com"]
[Date "2024.01.23"]
[Round "3"]
[White "ChessFighter_2011"]
[Black "Arifarsky"]
[Result "1-0"]
[WhiteElo "2931"]
[BlackElo "2707"]
[TimeControl "180+1"]
[EndTime "14:28:47 PST"]
[Termination "ChessFighter_2011 won by resignation"]

1. e4 {[%clk 0:03:00.9]} 1... c5 {[%clk 0:02:55.7]} 2. Nf3 {[%clk 0:03:00.8]}
2... Nc6 {[%clk 0:02:55.1]} 3. Bb5 {[%clk 0:02:59.9]} 3... g6 {[%clk 0:02:51.4]}
4. Bxc6 {[%clk 0:02:59.5]} 4... dxc6 {[%clk 0:02:49.6]} 5. d3 {[%clk 0:03:00.4]}
5... Bg7 {[%clk 0:02:50.1]} 6. h3 {[%clk 0:03:00.4]} 6... Nf6 {[%clk 0:02:49.3]}
7. O-O {[%clk 0:03:00.5]} 7... O-O {[%clk 0:02:49.3]} 8. Nc3 {[%clk 0:03:00.8]}
8... Qc7 {[%clk 0:02:44.1]} 9. Be3 {[%clk 0:03:00.7]} 9... b6 {[%clk 0:02:40.6]}
10. Qd2 {[%clk 0:03:00.7]} 10... Rd8 {[%clk 0:02:40.1]} 11. Bh6 {[%clk
0:02:59.2]} 11... Bh8 {[%clk 0:02:40.1]} 12. Rae1 {[%clk 0:02:54.7]} 12... e5
{[%clk 0:02:32.3]} 13. Nh2 {[%clk 0:02:50.2]} 13... c4 {[%clk 0:02:15.4]} 14.
Bg5 {[%clk 0:02:19.9]} 14... cxd3 {[%clk 0:01:56.7]} 15. cxd3 {[%clk 0:02:18.8]}
15... Qd6 {[%clk 0:01:52.8]} 16. f4 {[%clk 0:02:14.5]} 16... Qd4+ {[%clk
0:01:20.3]} 17. Rf2 {[%clk 0:01:36.3]} 17... Qxd3 {[%clk 0:00:51.1]} 18. Qc1
{[%clk 0:01:34]} 18... Be6 {[%clk 0:00:39.5]} 19. fxe5 {[%clk 0:01:25.8]} 19...
Nd7 {[%clk 0:00:39.5]} 20. Rd1 {[%clk 0:01:09.7]} 20... Qc4 {[%clk 0:00:36.6]}
21. Bxd8 {[%clk 0:01:03.4]} 21... Rxd8 {[%clk 0:00:37.3]} 22. Nf3 {[%clk
0:01:04]} 22... Re8 {[%clk 0:00:32.3]} 23. Qf4 {[%clk 0:01:02.8]} 23... Qc5
{[%clk 0:00:30.2]} 24. Rxd7 {[%clk 0:00:36.8]} 24... Bxd7 {[%clk 0:00:30.3]} 25.
Ng5 {[%clk 0:00:37.3]} 25... Rf8 {[%clk 0:00:12.6]} 26. Kh1 {[%clk 0:00:24.8]}
26... Bxe5 {[%clk 0:00:11.5]} 27. Qf3 {[%clk 0:00:21.7]} 27... Qe7 {[%clk
0:00:10.2]} 28. Qe3 {[%clk 0:00:20.5]} 28... c5 {[%clk 0:00:08.9]} 29. Nf3
{[%clk 0:00:20.7]} 29... Bg7 {[%clk 0:00:08.2]} 30. Nd5 {[%clk 0:00:21.2]} 30...
Qd6 {[%clk 0:00:08.7]} 31. b3 {[%clk 0:00:21.6]} 31... Re8 {[%clk 0:00:08.9]}
32. Rd2 {[%clk 0:00:22]} 32... Bc6 {[%clk 0:00:08.7]} 33. e5 {[%clk 0:00:19]}
33... Qe6 {[%clk 0:00:07.9]} 34. Nc7 {[%clk 0:00:18.7]} 34... Qe7 {[%clk
0:00:05.3]} 35. Nxe8 {[%clk 0:00:19]} 35... Bxe8 {[%clk 0:00:06]} 36. Qf4 {[%clk
0:00:18.2]} 36... Bc6 {[%clk 0:00:05.9]} 37. Rd6 {[%clk 0:00:18.1]} 37... Bb7
{[%clk 0:00:05.6]} 38. Qg5 {[%clk 0:00:14.5]} 38... Qxg5 {[%clk 0:00:03.8]} 39.
Nxg5 {[%clk 0:00:15.4]} 39... Bxe5 {[%clk 0:00:04.1]} 40. Rd8+ {[%clk
0:00:15.8]} 40... Kg7 {[%clk 0:00:04.2]} 41. Nxf7 {[%clk 0:00:16.4]} 41... Kxf7
{[%clk 0:00:03.8]} 42. Rd7+ {[%clk 0:00:16.8]} 42... Ke6 {[%clk 0:00:03.9]} 43.
Rxb7 {[%clk 0:00:17.7]} 43... a5 {[%clk 0:00:02.9]} 44. Rxb6+ {[%clk 0:00:17.9]}
44... Kd5 {[%clk 0:00:03]} 45. a4 {[%clk 0:00:18.3]} 45... c4 {[%clk 0:00:02.9]}
46. Rb5+ {[%clk 0:00:19.2]} 46... Kd4 {[%clk 0:00:02.9]} 47. bxc4 {[%clk
0:00:20.1]} 47... Bd6 {[%clk 0:00:03.4]} 48. Rd5+ {[%clk 0:00:19.5]} 1-0

[Event "Late-Titled-Tuesday-Blitz-January-23-2024"]
[Site "Chess.com"]
[Date "2024.01.23"]
[Round "3"]
[White "m_ezat"]
[Black "Fonsofan"]
[Result "0-1"]
[WhiteElo "2447"]
[BlackElo "2644"]
[TimeControl "180+1"]
[EndTime "14:28:48 PST"]
[Termination "Fonsofan won by resignation"]

1. d4 {[%clk 0:02:51.2]} 1... b5 {[%clk 0:02:55.8]} 2. e4 {[%clk 0:02:31.4]}
2... Bb7 {[%clk 0:02:55.6]} 3. Bd3 {[%clk 0:02:31]} 3... e6 {[%clk 0:02:55.1]}
4. Nf3 {[%clk 0:02:30.4]} 4... c5 {[%clk 0:02:50.6]} 5. c3 {[%clk 0:02:29.5]}
5... cxd4 {[%clk 0:02:31.7]} 6. cxd4 {[%clk 0:02:28.3]} 6... Nf6 {[%clk
0:02:32.3]} 7. Nbd2 {[%clk 0:02:27.2]} 7... a6 {[%clk 0:01:52.2]} 8. O-O {[%clk
0:02:20.4]} 8... Be7 {[%clk 0:01:47.9]} 9. Qe2 {[%clk 0:02:20.2]} 9... O-O
{[%clk 0:01:44.2]} 10. e5 {[%clk 0:02:16.9]} 10... Nd5 {[%clk 0:01:44.1]} 11.
Qe4 {[%clk 0:02:16.4]} 11... g6 {[%clk 0:01:39.4]} 12. Qg4 {[%clk 0:02:16.1]}
12... f5 {[%clk 0:01:38.3]} 13. exf6 {[%clk 0:02:09.7]} 13... Nxf6 {[%clk
0:01:38.8]} 14. Qg3 {[%clk 0:02:07.5]} 14... Nh5 {[%clk 0:01:38]} 15. Qg4 {[%clk
0:01:55.4]} 15... Rf4 {[%clk 0:01:35.3]} 16. Qh3 {[%clk 0:01:54.8]} 16... Nc6
{[%clk 0:01:31.9]} 17. Be4 {[%clk 0:01:47.7]} 17... Nf6 {[%clk 0:01:08.5]} 18.
Bb1 {[%clk 0:01:24.3]} 18... Nxd4 {[%clk 0:01:06.9]} 19. Nxd4 {[%clk 0:01:23.4]}
19... Rxd4 {[%clk 0:01:07.8]} 20. Nf3 {[%clk 0:01:21.3]} 20... Rg4 {[%clk
0:00:50.9]} 21. Bg5 {[%clk 0:01:08.9]} 21... Bxf3 {[%clk 0:00:48.5]} 22. Bxf6
{[%clk 0:00:55.8]} 22... Rxg2+ {[%clk 0:00:47.1]} 23. Qxg2 {[%clk 0:00:56.3]}
23... Bxg2 {[%clk 0:00:48]} 24. Bxe7 {[%clk 0:00:56.4]} 24... Qxe7 {[%clk
0:00:46.1]} 25. Kxg2 {[%clk 0:00:56.6]} 25... Qf6 {[%clk 0:00:26]} 26. Be4
{[%clk 0:00:53.4]} 26... Rc8 {[%clk 0:00:24.6]} 27. Rad1 {[%clk 0:00:48.6]}
27... d5 {[%clk 0:00:24.3]} 28. Bf3 {[%clk 0:00:48.7]} 28... Qxb2 {[%clk
0:00:22]} 29. Rfe1 {[%clk 0:00:48.6]} 29... Rc6 {[%clk 0:00:17.9]} 30. Rxd5
{[%clk 0:00:40.8]} 30... exd5 {[%clk 0:00:18]} 31. Bxd5+ {[%clk 0:00:40.1]}
31... Kg7 {[%clk 0:00:18.6]} 32. Bxc6 {[%clk 0:00:40.3]} 32... Qxa2 {[%clk
0:00:12.6]} 33. Bf3 {[%clk 0:00:35.9]} 33... Kf6 {[%clk 0:00:10.9]} 34. Rc1
{[%clk 0:00:34.1]} 34... a5 {[%clk 0:00:08.4]} 35. Rc6+ {[%clk 0:00:32.9]} 35...
Kg7 {[%clk 0:00:08.6]} 36. Rc7+ {[%clk 0:00:30]} 36... Kh6 {[%clk 0:00:08.9]}
37. Rd7 {[%clk 0:00:28.2]} 37... a4 {[%clk 0:00:06.7]} 38. Bd5 {[%clk
0:00:28.5]} 38... Qd2 {[%clk 0:00:07.3]} 39. h4 {[%clk 0:00:25.1]} 39... a3
{[%clk 0:00:07.1]} 40. Be6 {[%clk 0:00:16]} 40... Qxd7 {[%clk 0:00:07.6]} 41.
Bxd7 {[%clk 0:00:16.7]} 41... a2 {[%clk 0:00:08.1]} 42. Kg3 {[%clk 0:00:16.4]}
42... a1=Q {[%clk 0:00:09]} 43. f3 {[%clk 0:00:16.7]} 43... Qe5+ {[%clk
0:00:09]} 44. Kg4 {[%clk 0:00:16.3]} 44... b4 {[%clk 0:00:08.6]} 45. f4 {[%clk
0:00:17.2]} 45... Qd4 {[%clk 0:00:09.4]} 46. Be6 {[%clk 0:00:16.6]} 46... Qg1+
{[%clk 0:00:10]} 47. Kh3 {[%clk 0:00:16.4]} 47... Qe3+ {[%clk 0:00:10.1]} 48.
Kg4 {[%clk 0:00:16.5]} 48... Qxe6+ {[%clk 0:00:10.7]} 49. f5 {[%clk 0:00:16.2]}
49... Qc4+ {[%clk 0:00:11.6]} 50. Kg3 {[%clk 0:00:17]} 50... gxf5 {[%clk
0:00:11.7]} 51. h5 {[%clk 0:00:17.8]} 51... b3 {[%clk 0:00:12.6]} 52. Kh3 {[%clk
0:00:16.9]} 52... b2 {[%clk 0:00:11.9]} 53. Kg3 {[%clk 0:00:17.8]} 53... b1=Q
{[%clk 0:00:11.8]} 54. Kh3 {[%clk 0:00:18.7]} 54... Qbb3+ {[%clk 0:00:12.1]} 0-1

[Event "Late-Titled-Tuesday-Blitz-January-23-2024"]
[Site "Chess.com"]
[Date "2024.01.23"]
[Round "3"]
[White "RodokininEV"]
[Black "LastHeroJr"]
[Result "1-0"]
[WhiteElo "2610"]
[BlackElo "2428"]
[TimeControl "180+1"]
[EndTime "14:28:49 PST"]
[Termination "RodokininEV won by resignation"]

1. e4 {[%clk 0:02:56.1]} 1... e5 {[%clk 0:03:00]} 2. Nf3 {[%clk 0:02:54.4]} 2...
Nc6 {[%clk 0:03:00.4]} 3. Bb5 {[%clk 0:02:54.8]} 3... a6 {[%clk 0:03:00.2]} 4.
Ba4 {[%clk 0:02:53.9]} 4... Nf6 {[%clk 0:03:00.4]} 5. O-O {[%clk 0:02:53.8]}
5... Be7 {[%clk 0:03:00.1]} 6. Re1 {[%clk 0:02:52.5]} 6... b5 {[%clk 0:03:00.3]}
7. Bb3 {[%clk 0:02:52.7]} 7... d6 {[%clk 0:03:00.6]} 8. c3 {[%clk 0:02:52.5]}
8... O-O {[%clk 0:03:00.8]} 9. h3 {[%clk 0:02:53]} 9... Na5 {[%clk 0:03:01]} 10.
Bc2 {[%clk 0:02:53.1]} 10... c5 {[%clk 0:03:00.9]} 11. d4 {[%clk 0:02:53.4]}
11... Nd7 {[%clk 0:03:01.3]} 12. dxe5 {[%clk 0:02:52.5]} 12... dxe5 {[%clk
0:03:00.5]} 13. Nbd2 {[%clk 0:02:52.9]} 13... f6 {[%clk 0:02:44.3]} 14. Nf1
{[%clk 0:02:50.1]} 14... Bb7 {[%clk 0:02:38.4]} 15. Ng3 {[%clk 0:02:45.8]} 15...
Re8 {[%clk 0:02:37.1]} 16. Nh4 {[%clk 0:02:45.7]} 16... Bf8 {[%clk 0:02:35]} 17.
a4 {[%clk 0:02:43.7]} 17... Nc4 {[%clk 0:02:28.2]} 18. Qg4 {[%clk 0:02:36.4]}
18... Nd6 {[%clk 0:02:18.1]} 19. Be3 {[%clk 0:02:28.6]} 19... c4 {[%clk
0:02:00.4]} 20. b3 {[%clk 0:02:26.9]} 20... Rc8 {[%clk 0:01:53.8]} 21. Rad1
{[%clk 0:02:26.2]} 21... Kh8 {[%clk 0:01:37.4]} 22. Qh5 {[%clk 0:02:19.8]} 22...
Kg8 {[%clk 0:01:30]} 23. Qg4 {[%clk 0:02:15.1]} 23... Kh8 {[%clk 0:01:29.7]} 24.
Ngf5 {[%clk 0:02:08.8]} 24... Nxf5 {[%clk 0:01:22.3]} 25. Nxf5 {[%clk
0:02:09.7]} 25... Bc6 {[%clk 0:01:12.9]} 26. axb5 {[%clk 0:02:05.7]} 26... axb5
{[%clk 0:01:13.1]} 27. Re2 {[%clk 0:01:59.2]} 27... Qc7 {[%clk 0:01:08.8]} 28.
Red2 {[%clk 0:01:56.6]} 28... Rcd8 {[%clk 0:00:53]} 29. h4 {[%clk 0:01:47.9]}
29... Nb8 {[%clk 0:00:24.5]} 30. h5 {[%clk 0:01:40.4]} 30... Rxd2 {[%clk
0:00:24.2]} 31. Rxd2 {[%clk 0:01:41.3]} 31... Rd8 {[%clk 0:00:24.5]} 32. Rxd8
{[%clk 0:01:37.4]} 32... Qxd8 {[%clk 0:00:25.4]} 33. bxc4 {[%clk 0:01:34.2]}
33... bxc4 {[%clk 0:00:25]} 34. Qe2 {[%clk 0:01:34.6]} 34... Bb5 {[%clk
0:00:23.6]} 35. Qg4 {[%clk 0:01:22.6]} 35... Nc6 {[%clk 0:00:22.7]} 36. h6
{[%clk 0:01:21.6]} 36... g6 {[%clk 0:00:22.8]} 37. Ng3 {[%clk 0:01:20.8]} 37...
Qd6 {[%clk 0:00:20.5]} 38. Qc8 {[%clk 0:01:19.4]} 38... Kg8 {[%clk 0:00:20.6]}
39. Qb7 {[%clk 0:01:17.1]} 39... Qb8 {[%clk 0:00:13]} 40. Qd7 {[%clk 0:01:10.4]}
40... Qd6 {[%clk 0:00:13.1]} 41. Qb7 {[%clk 0:01:06.1]} 41... Qb8 {[%clk
0:00:13.3]} 42. Qd7 {[%clk 0:00:55.4]} 42... Qd6 {[%clk 0:00:13.6]} 43. Qg4
{[%clk 0:00:56.2]} 43... Kh8 {[%clk 0:00:11.1]} 44. f4 {[%clk 0:00:43]} 44...
Ba6 {[%clk 0:00:10.6]} 45. f5 {[%clk 0:00:40.8]} 45... g5 {[%clk 0:00:11]} 46.
Qh5 {[%clk 0:00:38.4]} 46... Qd7 {[%clk 0:00:10.1]} 47. Ba4 {[%clk 0:00:37]}
47... Bb7 {[%clk 0:00:10]} 48. Qe2 {[%clk 0:00:33.1]} 48... Qd3 {[%clk
0:00:07.6]} 49. Bb5 {[%clk 0:00:30.3]} 49... Qxe2 {[%clk 0:00:06.6]} 50. Nxe2
{[%clk 0:00:31.2]} 50... Na5 {[%clk 0:00:07.3]} 51. Ng3 {[%clk 0:00:28.5]} 51...
Kg8 {[%clk 0:00:07.6]} 52. Bb6 {[%clk 0:00:28.4]} 52... Nb3 {[%clk 0:00:07.3]}
53. Bxc4+ {[%clk 0:00:28.1]} 53... Kh8 {[%clk 0:00:06.3]} 54. Bxb3 {[%clk
0:00:28.2]} 54... Ba3 {[%clk 0:00:06.4]} 55. Kf2 {[%clk 0:00:27.2]} 1-0

[Event "Late-Titled-Tuesday-Blitz-January-23-2024"]
[Site "Chess.com"]
[Date "2024.01.23"]
[Round "3"]
[White "LiemLe"]
[Black "MyDream003"]
[Result "1-0"]
[WhiteElo "3115"]
[BlackElo "2845"]
[TimeControl "180+1"]
[EndTime "14:28:52 PST"]
[Termination "LiemLe won on time"]

1. Nf3 {[%clk 0:03:00.9]} 1... Nf6 {[%clk 0:02:59.7]} 2. c4 {[%clk 0:03:01.1]}
2... e6 {[%clk 0:02:53.8]} 3. Nc3 {[%clk 0:03:01]} 3... d5 {[%clk 0:02:53.5]} 4.
e3 {[%clk 0:03:01.7]} 4... dxc4 {[%clk 0:02:49.9]} 5. Bxc4 {[%clk 0:03:01.3]}
5... c5 {[%clk 0:02:49.2]} 6. O-O {[%clk 0:02:59.2]} 6... Be7 {[%clk 0:02:45.4]}
7. d4 {[%clk 0:02:57.8]} 7... O-O {[%clk 0:02:40.7]} 8. e4 {[%clk 0:02:46.6]}
8... cxd4 {[%clk 0:02:33.6]} 9. Nxd4 {[%clk 0:02:47.5]} 9... Qc7 {[%clk
0:02:21.6]} 10. Qe2 {[%clk 0:02:44.7]} 10... Ng4 {[%clk 0:01:52.3]} 11. Qxg4
{[%clk 0:01:46.9]} 11... Qxc4 {[%clk 0:01:51.1]} 12. Be3 {[%clk 0:01:39.7]}
12... Nc6 {[%clk 0:01:39.7]} 13. Nxc6 {[%clk 0:01:23.7]} 13... bxc6 {[%clk
0:01:24.8]} 14. Qg3 {[%clk 0:01:13.5]} 14... e5 {[%clk 0:00:57.2]} 15. Qxe5
{[%clk 0:00:59.8]} 15... Bf6 {[%clk 0:00:56.2]} 16. Qc5 {[%clk 0:00:44.7]} 16...
Qxc5 {[%clk 0:00:53.8]} 17. Bxc5 {[%clk 0:00:45.6]} 17... Re8 {[%clk 0:00:54.4]}
18. Rfd1 {[%clk 0:00:43]} 18... Rb8 {[%clk 0:00:36.8]} 19. Bxa7 {[%clk
0:00:26.3]} 19... Rxb2 {[%clk 0:00:35.7]} 20. Bd4 {[%clk 0:00:27]} 20... Bxd4
{[%clk 0:00:28.4]} 21. Rxd4 {[%clk 0:00:27.9]} 21... Ba6 {[%clk 0:00:13]} 22.
Rc1 {[%clk 0:00:24.8]} 22... h6 {[%clk 0:00:12.4]} 23. h4 {[%clk 0:00:19.1]}
23... c5 {[%clk 0:00:09.9]} 24. Ra4 {[%clk 0:00:17.1]} 24... Bd3 {[%clk
0:00:09.9]} 25. f3 {[%clk 0:00:12.2]} 25... c4 {[%clk 0:00:10.4]} 26. Nd5 {[%clk
0:00:12.6]} 26... Reb8 {[%clk 0:00:07]} 27. Kh2 {[%clk 0:00:10]} 27... Rd2
{[%clk 0:00:05.9]} 28. h5 {[%clk 0:00:09]} 28... Rbb2 {[%clk 0:00:05.7]} 29. Ne3
{[%clk 0:00:09.1]} 29... Re2 {[%clk 0:00:05.5]} 30. Nxc4 {[%clk 0:00:05.8]}
30... Rxg2+ {[%clk 0:00:05.1]} 31. Kh3 {[%clk 0:00:06.4]} 31... Bxc4 {[%clk
0:00:02.4]} 32. Rcxc4 {[%clk 0:00:07.3]} 32... Rxa2 {[%clk 0:00:02.2]} 33. Rc8+
{[%clk 0:00:06.8]} 33... Kh7 {[%clk 0:00:02]} 34. Rxa2 {[%clk 0:00:07.7]} 34...
Rxa2 {[%clk 0:00:02]} 35. Rc7 {[%clk 0:00:08.5]} 35... f6 {[%clk 0:00:02.6]} 36.
Kg3 {[%clk 0:00:07.3]} 36... Kg8 {[%clk 0:00:03.5]} 37. Rc8+ {[%clk 0:00:07.4]}
37... Kf7 {[%clk 0:00:03.2]} 38. Rc7+ {[%clk 0:00:08.3]} 38... Kf8 {[%clk
0:00:03.8]} 39. f4 {[%clk 0:00:08.7]} 39... Ra3+ {[%clk 0:00:03.8]} 40. Kg4
{[%clk 0:00:09]} 40... Ra4 {[%clk 0:00:04.7]} 41. Kf5 {[%clk 0:00:09.3]} 41...
Ra5+ {[%clk 0:00:04.8]} 42. Kg6 {[%clk 0:00:09.7]} 42... Ra4 {[%clk 0:00:03.2]}
43. Rf7+ {[%clk 0:00:08.6]} 43... Ke8 {[%clk 0:00:03.2]} 44. Kxg7 {[%clk
0:00:09.2]} 44... Rxe4 {[%clk 0:00:02.6]} 45. Rxf6 {[%clk 0:00:09.9]} 45... Ke7
{[%clk 0:00:02.6]} 46. f5 {[%clk 0:00:08.4]} 46... Rh4 {[%clk 0:00:02]} 47. Rxh6
{[%clk 0:00:08.4]} 1-0

[Event "Late-Titled-Tuesday-Blitz-January-23-2024"]
[Site "Chess.com"]
[Date "2024.01.23"]
[Round "3"]
[White "Elsa167"]
[Black "karinachess1"]
[Result "1-0"]
[WhiteElo "2943"]
[BlackElo "2626"]
[TimeControl "180+1"]
[EndTime "14:28:53 PST"]
[Termination "Elsa167 won by checkmate"]

1. d4 {[%clk 0:03:00.9]} 1... Nf6 {[%clk 0:03:00]} 2. Nc3 {[%clk 0:02:58]} 2...
d5 {[%clk 0:03:00.3]} 3. Bf4 {[%clk 0:02:57.8]} 3... g6 {[%clk 0:03:00.9]} 4. e3
{[%clk 0:02:57.9]} 4... Bg7 {[%clk 0:03:01.4]} 5. h4 {[%clk 0:02:58.6]} 5... h5
{[%clk 0:03:01.9]} 6. Nf3 {[%clk 0:02:58.3]} 6... O-O {[%clk 0:03:02.3]} 7. Be2
{[%clk 0:02:56.4]} 7... c5 {[%clk 0:02:58]} 8. Ne5 {[%clk 0:02:53.5]} 8... Nc6
{[%clk 0:02:56.4]} 9. Qd2 {[%clk 0:02:51.1]} 9... cxd4 {[%clk 0:02:56.1]} 10.
exd4 {[%clk 0:02:52]} 10... Qb6 {[%clk 0:02:56.4]} 11. O-O-O {[%clk 0:02:50.2]}
11... Bf5 {[%clk 0:02:49.1]} 12. f3 {[%clk 0:02:48.2]} 12... Nb4 {[%clk
0:02:45.6]} 13. Nd3 {[%clk 0:02:23]} 13... Qxd4 {[%clk 0:02:25.2]} 14. Be3
{[%clk 0:01:57.7]} 14... Qc4 {[%clk 0:02:10]} 15. Nxb4 {[%clk 0:01:15.2]} 15...
Qxb4 {[%clk 0:02:09]} 16. a3 {[%clk 0:01:08.9]} 16... Qd6 {[%clk 0:01:35.9]} 17.
Bh6 {[%clk 0:00:51.3]} 17... Rac8 {[%clk 0:01:12.9]} 18. Bxg7 {[%clk 0:00:51.3]}
18... Kxg7 {[%clk 0:01:13.8]} 19. g4 {[%clk 0:00:47]} 19... Be6 {[%clk
0:00:42.4]} 20. Qd4 {[%clk 0:00:43.7]} 20... Kh7 {[%clk 0:00:34.7]} 21. Qxa7
{[%clk 0:00:36]} 21... Qf4+ {[%clk 0:00:26.1]} 22. Kb1 {[%clk 0:00:34.8]} 22...
Rc7 {[%clk 0:00:11.9]} 23. Rd4 {[%clk 0:00:20.4]} 23... Qe3 {[%clk 0:00:09.4]}
24. g5 {[%clk 0:00:15.8]} 24... Nd7 {[%clk 0:00:07.3]} 25. Ra4 {[%clk
0:00:12.6]} 25... Rxc3 {[%clk 0:00:06.4]} 26. bxc3 {[%clk 0:00:09.6]} 26... Qxe2
{[%clk 0:00:06.9]} 27. Rb4 {[%clk 0:00:05.7]} 27... Qxf3 {[%clk 0:00:06.8]} 28.
Rc1 {[%clk 0:00:05.7]} 28... Qxc3 {[%clk 0:00:07]} 29. Rxb7 {[%clk 0:00:05.3]}
29... Nc5 {[%clk 0:00:04.8]} 30. Rc7 {[%clk 0:00:03.7]} 30... Rc8 {[%clk
0:00:01.7]} 31. Rxc8 {[%clk 0:00:04.3]} 31... Bxc8 {[%clk 0:00:02.6]} 32. Qxe7
{[%clk 0:00:04.2]} 32... Be6 {[%clk 0:00:03]} 33. Qf6 {[%clk 0:00:04.3]} 33...
Qxf6 {[%clk 0:00:03.1]} 34. gxf6 {[%clk 0:00:04.7]} 34... Ne4 {[%clk 0:00:03.9]}
35. a4 {[%clk 0:00:04.6]} 35... g5 {[%clk 0:00:04.3]} 36. hxg5 {[%clk
0:00:04.4]} 36... Nc3+ {[%clk 0:00:04.5]} 37. Kb2 {[%clk 0:00:04.2]} 37... Nxa4+
{[%clk 0:00:05.4]} 38. Kb3 {[%clk 0:00:04.4]} 38... Nc5+ {[%clk 0:00:05.9]} 39.
Kc3 {[%clk 0:00:04.5]} 39... Ne4+ {[%clk 0:00:06.6]} 40. Kd4 {[%clk 0:00:05.1]}
40... Nxg5 {[%clk 0:00:07.5]} 41. Ke5 {[%clk 0:00:05.5]} 41... Nf3+ {[%clk
0:00:07.8]} 42. Kf4 {[%clk 0:00:05.4]} 42... Nd4 {[%clk 0:00:08.3]} 43. Ke5
{[%clk 0:00:03.1]} 43... Ne2 {[%clk 0:00:07.7]} 44. Re1 {[%clk 0:00:02.5]} 44...
Ng3 {[%clk 0:00:08]} 45. Rb1 {[%clk 0:00:01.3]} 45... h4 {[%clk 0:00:08.3]} 46.
Rb4 {[%clk 0:00:01.6]} 46... Nf5 {[%clk 0:00:08.6]} 47. Rg4 {[%clk 0:00:01.8]}
47... Kh6 {[%clk 0:00:08.4]} 48. Rg8 {[%clk 0:00:01.8]} 48... Kh5 {[%clk
0:00:08.6]} 49. Kf4 {[%clk 0:00:02.4]} 49... Nh6 {[%clk 0:00:08]} 50. Rg5#
{[%clk 0:00:02.9]} 1-0

[Event "Late-Titled-Tuesday-Blitz-January-23-2024"]
[Site "Chess.com"]
[Date "2024.01.23"]
[Round "3"]
[White "dodoucb"]
[Black "cristiano78"]
[Result "1-0"]
[WhiteElo "2447"]
[BlackElo "2221"]
[TimeControl "180+1"]
[EndTime "14:28:53 PST"]
[Termination "dodoucb won on time"]

1. d4 {[%clk 0:02:59.5]} 1... Nf6 {[%clk 0:02:59.1]} 2. c4 {[%clk 0:03:00.1]}
2... g6 {[%clk 0:02:59]} 3. Nc3 {[%clk 0:03:00.5]} 3... Bg7 {[%clk 0:02:59.5]}
4. e4 {[%clk 0:03:00.7]} 4... d6 {[%clk 0:03:00.1]} 5. Nf3 {[%clk 0:03:01.6]}
5... O-O {[%clk 0:03:00.5]} 6. Be2 {[%clk 0:03:02.5]} 6... e5 {[%clk 0:03:00.9]}
7. O-O {[%clk 0:03:03.4]} 7... Nc6 {[%clk 0:02:59.2]} 8. d5 {[%clk 0:03:03.9]}
8... Ne7 {[%clk 0:02:59.6]} 9. Ne1 {[%clk 0:03:04.8]} 9... Nd7 {[%clk
0:02:57.3]} 10. Nd3 {[%clk 0:03:05.7]} 10... f5 {[%clk 0:02:56.6]} 11. f3 {[%clk
0:03:06.4]} 11... f4 {[%clk 0:02:55]} 12. b4 {[%clk 0:03:06.7]} 12... h5 {[%clk
0:02:53.2]} 13. c5 {[%clk 0:03:07.1]} 13... Rf7 {[%clk 0:02:52.6]} 14. a4 {[%clk
0:03:07.3]} 14... Bf8 {[%clk 0:02:51]} 15. a5 {[%clk 0:03:07.4]} 15... g5 {[%clk
0:02:50.4]} 16. c6 {[%clk 0:03:04.8]} 16... bxc6 {[%clk 0:02:42.7]} 17. dxc6
{[%clk 0:03:03.4]} 17... Nf6 {[%clk 0:02:42.7]} 18. Nf2 {[%clk 0:02:59.7]} 18...
Rg7 {[%clk 0:02:38.5]} 19. b5 {[%clk 0:02:10.2]} 19... g4 {[%clk 0:02:30.5]} 20.
fxg4 {[%clk 0:02:10.5]} 20... hxg4 {[%clk 0:02:29.7]} 21. g3 {[%clk 0:02:11.1]}
21... Qe8 {[%clk 0:01:56.9]} 22. gxf4 {[%clk 0:01:18.5]} 22... Qh5 {[%clk
0:01:55.3]} 23. Qd3 {[%clk 0:01:05.6]} 23... Ng6 {[%clk 0:01:44.2]} 24. Qg3
{[%clk 0:01:01.2]} 24... exf4 {[%clk 0:01:38.1]} 25. Bxf4 {[%clk 0:01:00.6]}
25... Be6 {[%clk 0:01:09.2]} 26. Nd3 {[%clk 0:00:46.1]} 26... Be7 {[%clk
0:01:01.9]} 27. e5 {[%clk 0:00:37.6]} 27... dxe5 {[%clk 0:00:55]} 28. Bxe5
{[%clk 0:00:33]} 28... Nxe5 {[%clk 0:00:26.3]} 29. Qxe5 {[%clk 0:00:30.6]} 29...
Qxe5 {[%clk 0:00:23.3]} 30. Nxe5 {[%clk 0:00:30.4]} 30... g3 {[%clk 0:00:22.5]}
31. Bf3 {[%clk 0:00:12.3]} 31... gxh2+ {[%clk 0:00:20.6]} 32. Kh1 {[%clk
0:00:12.3]} 32... Bd6 {[%clk 0:00:18.7]} 33. Rae1 {[%clk 0:00:09.5]} 33... Ng4
{[%clk 0:00:13.7]} 34. Nxg4 {[%clk 0:00:07.6]} 34... Bxg4 {[%clk 0:00:13.6]} 35.
Bxg4 {[%clk 0:00:08.1]} 35... Rxg4 {[%clk 0:00:13.6]} 36. Nd5 {[%clk 0:00:08.4]}
36... Kg7 {[%clk 0:00:09.5]} 37. b6 {[%clk 0:00:07.5]} 37... axb6 {[%clk
0:00:09.3]} 38. axb6 {[%clk 0:00:08.4]} 38... cxb6 {[%clk 0:00:07.2]} 39. Re6
{[%clk 0:00:08.9]} 39... Bc5 {[%clk 0:00:06.4]} 40. c7 {[%clk 0:00:07.3]} 40...
Rc8 {[%clk 0:00:05.9]} 41. Rc6 {[%clk 0:00:04.2]} 41... Rg6 {[%clk 0:00:03]} 42.
Rxg6+ {[%clk 0:00:01.9]} 42... Kxg6 {[%clk 0:00:02.6]} 43. Kxh2 {[%clk
0:00:02.4]} 1-0